bitfinex/quotes_ETHUSD_20240820
["timestamp","ask_amount","ask_price","bid_price","bid_amount"]
[1724115332904,0.1299763,2663.6,2663.0,2.2959]
[1724115333104,0.1299763,2663.6,2663.2,2.271]
[1724115333307,3.1789763,2663.6,2663.2,2.271]
[1724115333626,3.1789763,2663.6,2663.3,0.06307062]
[1724115334027,3.1789763,2663.6,2663.2,2.271]
[1724115334245,3.0,2663.5,2663.4,0.06302545]
[1724115334445,3.99331563,2663.5,2663.2,2.271]
[1724115336803,3.049,2663.3,2663.2,2.271]
[1724115337125,6.049,2663.3,2663.2,2.271]
[1724115338909,3.0,2663.3,2663.2,2.271]
[1724115339109,0.99331563,2663.5,2663.2,2.271]
[1724115341164,0.71722919,2663.4,2663.2,2.271]
[1724115342132,6.1789763,2663.6,2663.2,2.271]
[1724115345235,9.9333063,2663.6,2663.2,2.271]
[1724115348255,3.049,2663.3,2663.2,2.271]
[1724115348458,6.049,2663.3,2663.2,2.271]
[1724115348847,6.049,2663.3,2662.2,2.3893]
[1724115349049,3.980367,2663.2,2662.4,2.3655]
[1724115349438,3.980367,2663.2,2662.5,0.06313465]
[1724115349674,3.980367,2663.2,2662.6,2.3655]
[1724115349850,3.0,2663.2,2662.6,2.3655]
[1724115350053,3.0,2663.2,2662.6,2.42859403]
[1724115352569,3.049,2663.0,2662.6,2.42859403]
[1724115352874,3.0,2662.9,2662.6,2.3655]
[1724115353266,3.0,2662.9,2662.7,0.06311289]
[1724115353473,3.0,2662.9,2662.6,2.3655]
[1724115356097,3.6049,2662.9,2662.6,2.2876]
[1724115356608,7.36021,2662.9,2662.6,2.2876]
[1724115356907,3.6049,2662.9,2662.6,2.2876]
[1724115358378,3.6049,2662.9,2661.8,12.26]
[1724115358379,3.75589,2662.5,2661.8,19.64]
[1724115358579,3.049,2662.3,2661.9,0.06368041]
[1724115358792,3.049,2662.3,2661.4,7.38]
[1724115359001,3.0,2662.2,2661.4,7.38]
[1724115359350,3.0,2662.2,2661.5,2.52041758]
[1724115360586,3.0,2662.5,2661.5,2.52041758]
[1724115360799,3.0,2662.5,2661.7,2.4471]
[1724115361328,3.0,2662.5,2661.8,2.5112284]
[1724115361972,3.0,2662.5,2661.8,2.2987284]
[1724115362298,3.0,2662.5,2661.9,0.06194557]
[1724115362500,3.049,2662.3,2661.9,0.06194557]
[1724115362665,3.049,2662.3,2661.4,7.38]
[1724115362868,3.0,2662.2,2661.5,0.80012646]
[1724115363486,3.0,2662.2,2661.5,0.06212646]
[1724115363692,3.049,2662.0,2661.5,0.06212646]
[1724115363889,3.0,2661.9,2661.5,0.06212646]
[1724115364319,3.0,2661.9,2660.9,7.38]
[1724115364709,2.99809991,2661.9,2660.9,7.38]
[1724115364886,2.99809991,2661.9,2661.0,0.80035265]
[1724115365082,2.99809991,2661.9,2661.1,2.2747]
[1724115365285,2.99809991,2661.9,2661.2,0.06226217]
[1724115365608,2.99809991,2661.9,2661.3,2.2747]
[1724115365808,2.99809991,2661.9,2661.3,2.33691693]
[1724115366008,3.6028099,2661.9,2661.3,2.33691693]
[1724115366408,3.049,2661.7,2661.3,2.33691693]
[1724115366914,3.0,2661.6,2661.3,2.33691693]
[1724115367106,3.0,2661.6,2661.3,2.2747]
[1724115367297,3.0,2661.6,2661.3,2.0953]
[1724115368033,3.0,2661.9,2661.4,0.07513998]
[1724115368208,3.049,2662.4,2661.4,0.06303256]
[1724115368522,3.049,2662.4,2660.9,7.38]
[1724115368523,6.75617,2662.3,2660.9,7.38]
[1724115369026,3.049,2662.1,2661.0,0.06122976]
[1724115369214,3.0,2662.0,2661.0,0.06122976]
[1724115370396,3.0,2662.0,2661.1,2.2839]
[1724115370616,3.0,2662.0,2661.2,2.57955226]
[1724115371525,3.0,2662.0,2661.2,2.34503928]
[1724115371526,3.049,2661.8,2661.2,2.34503928]
[1724115371735,3.0,2661.7,2661.2,2.34503928]
[1724115372403,3.0,2662.0,2661.2,2.34503928]
[1724115373013,6.75665,2662.0,2661.2,2.34503928]
[1724115373216,3.0,2662.0,2661.2,2.34503928]
[1724115373438,0.6049,2661.9,2661.2,2.34503928]
[1724115375028,3.0,2662.0,2661.2,2.34503928]
[1724115375245,0.32969762,2662.8,2661.4,2.2771]
[1724115375389,0.32969762,2662.8,2661.5,2.433]
[1724115375390,3.049,2662.7,2661.5,2.433]
[1724115375590,3.049,2662.7,2661.7,2.0818]
[1724115376018,3.049,2662.7,2661.8,0.06080845]
[1724115376506,3.0,2662.6,2661.8,0.06080845]
[1724115377396,6.80502,2662.4,2661.8,0.06080845]
[1724115377597,3.049,2662.1,2661.7,2.0818]
[1724115378142,3.049,2661.8,2660.3,7.38]
[1724115378435,3.0,2661.7,2660.4,0.06129098]
[1724115378626,3.0,2661.7,2660.5,2.3269]
[1724115378821,3.0,2661.7,2660.6,2.5657191]
[1724115379027,3.0,2661.7,2660.6,2.62691955]
[1724115379434,3.0,2662.0,2660.6,2.62691955]
[1724115380497,3.0,2662.0,2660.6,2.70206525]
[1724115380739,3.0,2662.0,2660.8,2.3269]
[1724115381041,3.0,2662.3,2661.0,2.3269]
[1724115381238,3.0,2662.3,2661.1,2.3269]
[1724115381544,3.0,2662.3,2661.1,2.4629246]
[1724115381703,6.12863,2662.8,2661.1,2.4629246]
[1724115381704,3.049,2662.7,2661.3,2.3269]
[1724115381907,3.049,2662.7,2661.2,0.24629246]
[1724115381908,3.049,2662.7,2661.5,2.3269]
[1724115382425,3.049,2662.7,2661.6,0.0607114]
[1724115382745,3.049,2662.7,2661.7,2.4324]
[1724115382912,3.049,2662.7,2661.7,2.49306618]
[1724115383118,3.0,2662.6,2661.7,2.49306618]
[1724115383437,3.0,2662.6,2661.9,2.4324]
[1724115384512,3.0,2662.6,2662.0,2.38763053]
[1724115384946,3.0,2662.6,2662.0,2.3271]
[1724115386710,3.0,2662.6,2662.1,0.06048532]
[1724115387741,3.049,2662.4,2662.1,0.06048532]
[1724115387939,3.0,2662.3,2662.1,0.06048532]
[1724115388139,0.980508,2662.2,2662.1,0.06048532]
[1724115389155,0.980508,2662.2,2661.8,2.3029]
[1724115389379,0.980508,2662.2,2662.1,0.06031161]
[1724115389555,0.980508,2662.2,2661.8,2.3029]
[1724115389729,0.980508,2662.2,2662.1,0.06031161]
[1724115389919,0.980508,2662.2,2661.8,2.3029]
[1724115390114,0.980508,2662.2,2662.1,0.06031161]
[1724115390320,0.980508,2662.2,2661.8,2.3029]
[1724115390519,3.0,2662.3,2662.1,0.06031161]
[1724115390858,3.0,2662.3,2661.8,2.3029]
[1724115391221,3.0,2662.3,2661.9,0.0605346]
[1724115391868,3.0,2662.3,2662.0,2.3377]
[1724115392056,3.049,2662.7,2662.0,2.3377]
[1724115392057,3.0,2662.6,2662.0,2.3377]
[1724115392226,3.0,2662.6,2662.1,0.06023847]
[1724115392670,3.0,2662.6,2662.0,2.3377]
[1724115392880,3.6049,2662.6,2662.0,2.3377]
[1724115393024,3.6049,2662.6,2662.1,0.06023847]
[1724115393607,3.6049,2662.6,2662.0,2.3377]
[1724115393804,3.6049,2662.6,2662.2,0.06012926]
[1724115393956,0.66539,2662.5,2662.0,2.3377]
[1724115394156,0.66539,2662.5,2662.3,0.06008406]
[1724115394357,0.66539,2662.5,2662.0,2.3377]
[1724115394566,3.6049,2662.6,2662.4,0.06003886]
[1724115394773,3.6049,2662.6,2662.0,2.3377]
[1724115395009,3.6049,2662.6,2662.5,0.05999366]
[1724115395214,3.6049,2662.6,2662.0,2.3377]
[1724115395705,3.6049,2662.6,2662.1,0.06017447]
[1724115395922,1.04095,2662.5,2662.1,0.06017447]
[1724115397079,3.75622,2662.3,2662.1,0.06017447]
[1724115397498,3.0,2662.2,2661.8,2.4245]
[1724115397860,3.0,2662.2,2661.9,0.06028775]
[1724115398062,3.049,2662.1,2661.9,0.06028775]
[1724115398298,3.6049,2662.0,2661.9,0.06028775]
[1724115399800,3.0,2662.0,2661.9,0.06028775]
[1724115400005,3.23767466,2662.7,2662.0,2.2846]
[1724115400366,3.23767466,2662.7,2662.1,0.06031161]
[1724115400690,3.23767466,2662.7,2662.0,2.2846]
[1724115400691,3.049,2662.7,2662.0,2.2846]
[1724115401119,3.729434,2662.7,2662.1,0.06031161]
[1724115401503,3.0,2662.6,2662.0,2.2846]
[1724115401905,3.0,2662.6,2662.2,2.2846]
[1724115402298,3.0,2662.6,2662.3,0.06003378]
[1724115402510,3.0,2662.6,2662.2,2.2846]
[1724115402711,3.6049,2662.6,2662.2,2.2846]
[1724115404138,7.36072,2662.6,2662.2,2.2846]
[1724115404481,3.049,2662.4,2661.4,2.4535]
[1724115404707,3.0,2662.3,2661.5,0.05833741]
[1724115404896,3.0,2662.3,2661.6,2.4535]
[1724115405215,3.0,2662.3,2661.8,2.4535]
[1724115405586,3.0,2662.3,2661.9,0.05815652]
[1724115406946,3.0,2662.3,2662.0,2.3836]
[1724115407143,3.0,2662.3,2662.0,2.44171131]
[1724115407505,3.0,2662.6,2662.0,2.44171131]
[1724115408087,4.104982,2662.7,2662.0,2.3836]
[1724115408388,3.049,2662.7,2662.2,2.3836]
[1724115409496,6.80458,2662.7,2662.2,2.3836]
[1724115409695,3.0,2662.6,2662.2,2.3836]
[1724115412328,3.0,2662.6,2662.3,0.0579985]
[1724115412529,3.0,2662.6,2662.2,2.3836]
[1724115412831,0.980458,2662.5,2662.3,0.0579985]
[1724115413191,0.980458,2662.5,2662.2,2.3836]
[1724115413527,0.980458,2662.5,2662.3,0.05611739]
[1724115413830,0.980458,2662.5,2662.2,2.3836]
[1724115414122,0.980458,2662.5,2662.4,0.05607219]
[1724115414326,0.980458,2662.5,2662.3,0.05611739]
[1724115414635,0.980458,2662.5,2662.4,0.05607219]
[1724115415000,0.980458,2662.5,2662.2,2.3836]
[1724115415244,3.0,2662.6,2662.4,0.05607219]
[1724115415410,3.0,2662.6,2662.3,0.05611739]
[1724115415594,3.0,2662.6,2662.2,2.3836]
[1724115415796,3.0,2662.6,2662.4,0.05607219]
[1724115416023,3.0,2662.6,2662.2,2.3836]
[1724115416226,4.356006,2662.6,2662.5,0.056027]
[1724115416424,4.356006,2662.6,2662.2,2.3836]
[1724115416641,4.356006,2662.6,2662.5,0.056027]
[1724115416946,4.356006,2662.6,2662.2,2.3836]
[1724115417108,3.0,2662.6,2662.5,0.056027]
[1724115417319,3.0,2662.6,2662.2,2.3836]
[1724115417719,3.0,2662.6,2662.3,0.05611739]
[1724115417897,3.0,2662.6,2662.2,2.3836]
[1724115418101,3.0,2662.6,2662.2,2.62196]
[1724115418305,3.0,2662.9,2662.4,2.2926]
[1724115418498,6.75532,2662.9,2662.4,2.2926]
[1724115418720,3.0,2662.9,2662.4,2.2926]
[1724115419120,3.049,2663.3,2662.4,2.2926]
[1724115419428,3.049,2663.3,2662.6,2.2926]
[1724115419799,6.80376,2663.3,2662.6,2.2926]
[1724115419995,5.5443,2663.3,2662.6,2.2926]
[1724115420404,3.75504,2663.1,2662.6,2.2926]
[1724115420603,3.751003,2663.0,2662.6,2.2926]
[1724115420797,3.0,2663.0,2662.6,2.2926]
[1724115421901,3.75503,2663.1,2662.6,2.2926]
[1724115422102,3.0,2663.0,2662.6,2.2926]
[1724115422328,6.049,2663.0,2662.6,2.2926]
[1724115422499,0.980403,2662.9,2662.6,2.2926]
[1724115424036,6.049,2663.0,2662.6,2.2926]
[1724115424438,6.049,2663.0,2662.7,0.05574986]
[1724115425174,3.0,2663.0,2662.8,2.4506]
[1724115425308,3.0,2663.2,2662.9,0.05565949]
[1724115425646,3.3049,2663.2,2662.8,2.4506]
[1724115427239,7.05979,2663.2,2662.8,2.4506]
[1724115427455,3.049,2663.0,2662.8,2.4506]
[1724115427776,3.0,2662.9,2662.8,2.4506]
[1724115428299,6.049,2663.3,2662.8,2.4506]
[1724115428640,0.1299763,2663.6,2662.8,2.4506]
[1724115429378,0.1299763,2663.6,2663.0,2.2512]
[1724115429539,0.1299763,2663.6,2663.1,0.05539603]
[1724115429739,0.1299763,2663.6,2663.2,2.2919]
[1724115429972,3.75446,2663.5,2663.3,0.05530568]
[1724115430171,3.75446,2663.5,2662.8,2.2919]
[1724115430378,3.0,2663.4,2662.9,0.05548639]
[1724115430551,7.20219393,2663.6,2663.0,2.3053]
[1724115430751,3.44787393,2663.6,2663.0,2.3053]
[1724115431139,3.1299763,2663.6,2663.0,2.3053]
[1724115432101,3.75459,2663.5,2663.0,2.3053]
[1724115432304,3.0,2663.4,2663.0,2.3053]
[1724115432871,6.75467,2663.4,2663.0,2.3053]
[1724115433748,10.50935,2663.4,2663.0,2.3053]
[1724115433949,1.050935,2663.3,2663.0,2.3053]
[1724115436069,4.805695,2663.3,2663.0,2.3053]
[1724115436262,3.0,2663.2,2663.0,2.3053]
[1724115436921,4.050935,2663.3,2663.0,2.3053]
[1724115439380,3.75524,2663.0,2662.6,2.3849]
[1724115439600,3.75566,2662.7,2662.1,2.3849]
[1724115439936,6.80488,2662.5,2662.1,2.3849]
[1724115440131,3.0,2662.4,2662.1,2.3849]
[1724115443228,3.0,2662.7,2662.1,2.3849]
[1724115443609,3.049,2662.8,2662.1,2.3849]
[1724115443926,6.80456,2662.8,2662.1,2.3849]
[1724115444113,3.0,2662.7,2662.1,2.3849]
[1724115447244,3.7559,2662.5,2662.1,2.3849]
[1724115447437,3.0,2662.4,2662.1,2.3849]
[1724115447622,3.0,2662.5,2662.1,2.3849]
[1724115451035,3.0,2662.5,2662.2,0.05594851]
[1724115451739,3.75615,2662.3,2662.2,0.05594851]
[1724115452064,10.5123,2662.3,2661.8,2.4328]
[1724115452201,3.75632,2662.2,2661.8,2.4328]
[1724115452396,3.0,2662.1,2661.9,0.05608414]
[1724115452751,3.0,2662.1,2661.8,2.4328]
[1724115453033,3.0,2662.1,2661.9,0.05608414]
[1724115453241,3.0,2662.1,2661.8,2.4328]
[1724115453403,3.0,2662.1,2662.0,0.05603893]
[1724115453603,3.0,2662.1,2661.8,2.4328]
[1724115453808,3.0,2662.1,2662.0,0.05603893]
[1724115454030,4.4541985,2662.1,2661.8,2.4328]
[1724115454230,4.4541985,2662.1,2662.0,0.05603893]
[1724115454538,4.4541985,2662.1,2661.8,2.4328]
[1724115455047,4.4541985,2662.1,2661.9,0.05608414]
[1724115455204,4.4541985,2662.1,2661.8,2.4328]
[1724115455403,4.4541985,2662.1,2662.0,0.05603893]
[1724115455607,4.4541985,2662.1,2661.8,2.4328]
[1724115455813,4.4541985,2662.1,2662.0,0.05603893]
[1724115456035,4.4541985,2662.1,2661.8,2.4328]
[1724115456225,4.4541985,2662.1,2662.0,0.05603893]
[1724115456427,4.4541985,2662.1,2661.8,2.4328]
[1724115456654,3.0,2662.1,2662.0,0.05603893]
[1724115456813,3.0,2662.1,2661.8,2.4328]
[1724115457012,3.0,2662.1,2662.0,0.05603893]
[1724115457212,3.0,2662.1,2661.8,2.4328]
[1724115457412,3.0,2662.1,2662.0,0.05603893]
[1724115457613,3.0,2662.1,2661.8,2.4328]
[1724115457945,3.0,2662.1,2662.0,0.05603893]
[1724115458149,3.0,2662.1,2661.9,0.05608414]
[1724115458325,3.0,2662.1,2661.8,2.4328]
[1724115458736,3.0,2662.1,2661.9,0.05608414]
[1724115458942,3.0,2662.1,2662.0,2.4043]
[1724115459125,3.0,2662.4,2662.0,2.65033841]
[1724115459431,3.0,2662.4,2662.0,2.46033893]
[1724115459607,3.049,2662.8,2662.0,2.4043]
[1724115459812,3.049,2662.8,2662.2,2.2646]
[1724115460161,3.049,2663.1,2662.2,2.2646]
[1724115460368,3.049,2663.1,2662.4,2.3526]
[1724115460667,6.8041,2663.1,2662.4,2.3526]
[1724115461448,3.0,2663.0,2662.4,2.3526]
[1724115461779,3.049,2662.8,2662.4,2.3526]
[1724115462004,3.3049,2662.7,2662.4,2.3526]
[1724115462475,7.06049,2662.7,2662.4,2.3526]
[1724115463562,7.06049,2662.7,2661.6,2.3578]
[1724115463887,7.06049,2662.7,2661.7,2.4120125]
[1724115464090,3.3049,2662.7,2661.7,2.4120125]
[1724115464248,3.0,2662.7,2661.7,2.4120125]
[1724115467245,6.75565,2662.7,2661.7,2.4120125]
[1724115469755,3.0,2662.7,2661.7,2.4120125]
[1724115471357,3.0,2662.7,2661.8,2.43292128]
[1724115471559,0.46451583,2663.7,2661.8,2.43292128]
[1724115471560,6.80355,2663.5,2662.0,2.3578]
[1724115471876,3.049,2663.5,2662.2,2.3578]
[1724115472266,6.80346,2663.5,2662.3,0.05400492]
[1724115472567,0.69334363,2663.4,2662.4,2.3578]
[1724115473594,3.69334363,2663.4,2662.4,2.3578]
[1724115473799,3.75474,2663.3,2662.4,2.3578]
[1724115473994,3.0,2663.2,2662.4,2.3578]
[1724115474898,3.1789763,2663.6,2662.6,2.4634]
[1724115475098,3.0,2663.5,2662.6,2.4634]
[1724115475595,6.75458,2663.5,2662.6,2.4634]
[1724115477901,3.75464,2663.4,2662.6,2.4634]
[1724115478215,3.675464,2663.3,2662.6,2.4634]
[1724115478422,6.049,2663.3,2662.6,2.4634]
[1724115479223,3.75504,2663.1,2662.6,2.4634]
[1724115479565,3.0,2663.0,2662.6,2.4634]
[1724115479900,9.80416,2663.0,2662.6,2.4634]
[1724115480211,0.980416,2662.9,2662.6,2.4634]
[1724115480515,3.0,2663.1,2662.6,2.4634]
[1724115481789,6.75503,2663.1,2662.6,2.4634]
[1724115482804,3.049,2662.9,2662.6,2.4634]
[1724115482967,3.75558,2662.7,2661.5,2.2876]
[1724115483169,3.424558,2662.6,2661.7,2.2876]
[1724115483508,3.049,2662.3,2661.8,0.05392622]
[1724115483721,3.049,2662.3,2661.7,2.2876]
[1724115484071,3.0,2662.5,2661.7,2.2876]
[1724115484297,3.0,2662.5,2661.9,2.4385]
[1724115485695,3.0,2662.8,2661.9,2.4385]
[1724115486072,3.049,2662.9,2661.9,2.4385]
[1724115486521,3.049,2662.9,2662.0,2.39633578]
[1724115486670,3.049,2663.2,2662.1,2.58213358]
[1724115487014,3.75524,2663.0,2662.1,2.63592415]
[1724115487373,3.7553,2662.9,2662.1,2.63592415]
[1724115487515,3.0,2662.8,2662.1,2.63592415]
[1724115487731,3.0,2662.9,2662.2,0.26359242]
[1724115487910,3.0,2662.9,2662.3,0.07511564]
[1724115488080,4.13965577,2663.5,2662.4,2.473]
[1724115488276,3.1789763,2663.6,2662.6,2.473]
[1724115488480,3.1789763,2663.6,2662.8,2.473]
[1724115489223,6.9333163,2663.6,2662.9,0.05173927]
[1724115489688,3.0,2663.5,2662.9,0.05173927]
[1724115490122,0.1299763,2663.6,2663.0,2.4511]
[1724115490327,0.1299763,2663.6,2663.1,2.52619337]
[1724115490528,0.1299763,2663.6,2663.1,2.70889105]
[1724115490816,0.1299763,2663.6,2663.3,2.3845]
[1724115491209,0.1299763,2663.6,2663.4,0.05153647]
[1724115491818,3.1299763,2663.6,2663.4,0.05153647]
[1724115492019,3.1299763,2663.6,2663.3,2.3845]
[1724115492341,4.12327893,2663.6,2663.3,2.3845]
[1724115492534,0.46451583,2663.5,2663.3,2.3845]
[1724115493234,7.87759893,2663.6,2662.5,2.3845]
[1724115493446,6.80371,2663.4,2662.5,2.3845]
[1724115493670,3.0,2663.3,2662.5,2.3845]
[1724115493815,3.0,2663.3,2662.6,2.3845]
[1724115495959,3.0,2663.3,2662.7,0.05185271]
[1724115496858,3.0,2663.3,2662.8,2.3845]
[1724115497264,3.0,2663.3,2662.8,2.43630752]
[1724115500262,3.0,2663.5,2662.8,2.43630752]
[1724115500564,7.44780063,2663.5,2662.8,2.43630752]
[1724115501056,7.44780063,2663.5,2662.8,2.3845]
[1724115501428,3.69333063,2663.5,2662.8,2.3845]
[1724115501650,3.0,2663.5,2662.8,2.3845]
[1724115502053,3.1299763,2663.6,2662.8,2.3845]
[1724115503227,3.1299763,2663.6,2663.0,2.2992]
[1724115503662,3.1299763,2663.6,2663.1,0.05142221]
[1724115503663,6.8842963,2663.6,2663.1,0.05142221]
[1724115503962,0.99332963,2663.5,2663.0,2.2992]
[1724115505138,6.80367,2663.4,2663.0,2.2992]
[1724115505463,3.0,2663.3,2663.0,2.2992]
[1724115508776,0.1299763,2663.6,2663.0,2.2992]
[1724115508956,0.1299763,2663.6,2662.4,7.38]
[1724115508957,0.1299763,2663.6,2663.2,2.3295]
[1724115509495,3.1789763,2663.6,2663.2,2.3295]
[1724115509654,3.69331763,2663.5,2663.2,2.3295]
[1724115511067,7.44784763,2663.5,2663.2,2.3295]
[1724115511270,6.80375,2663.3,2662.5,2.4374]
[1724115511471,3.0,2663.2,2662.5,2.4374]
[1724115511664,3.0,2663.2,2662.6,2.4374]
[1724115513394,3.1299763,2663.6,2662.6,2.4374]
[1724115514061,6.8843063,2663.6,2662.6,2.4374]
[1724115514283,3.1299763,2663.6,2662.6,2.4374]
[1724115514483,3.73741863,2663.5,2662.6,2.4374]
[1724115514700,3.75475,2663.3,2662.6,2.4374]
[1724115514881,6.75462,2663.4,2662.6,2.4374]
[1724115515765,3.75475,2663.3,2662.6,2.4374]
[1724115515965,3.0,2663.2,2662.6,2.4374]
[1724115516169,3.75519,2663.0,2662.6,2.4374]
[1724115516363,3.0,2662.9,2662.6,2.4374]
[1724115516591,3.0,2663.0,2662.6,2.4374]
[1724115516787,7.730355,2663.2,2662.6,2.4374]
[1724115517307,3.75505,2663.1,2662.6,2.4374]
[1724115517602,3.0,2663.0,2662.6,2.4374]
[1724115519067,3.0,2663.1,2662.7,2.3416]
[1724115519310,3.0,2663.1,2662.8,0.05146243]
[1724115519604,3.0,2663.1,2662.7,2.3416]
[1724115519903,0.1299763,2663.6,2662.8,2.42886243]
[1724115520106,0.1299763,2663.6,2663.0,2.3774]
[1724115520607,0.1299763,2663.6,2663.2,2.3774]
[1724115521098,0.1299763,2663.6,2663.4,2.3774]
[1724115521518,0.1299763,2663.6,2663.5,0.05114622]
[1724115521692,0.1299763,2663.6,2663.4,2.3774]
[1724115521882,0.1299763,2663.6,2663.5,0.05107357]
[1724115523292,0.1299763,2663.6,2663.5,2.52374736]
[1724115523491,0.1299763,2663.6,2663.5,2.57300161]
[1724115525191,3.75196,2665.3,2663.5,2.57300161]
[1724115525506,3.75196,2665.3,2663.6,2.9746]
[1724115525704,3.75196,2665.3,2663.8,2.4246]
[1724115525906,0.18235321,2665.5,2663.8,2.4246]
[1724115525907,6.80123,2665.1,2663.8,2.4246]
[1724115526106,3.7525,2664.9,2663.9,0.0469198]
[1724115526280,3.7525,2664.9,2664.0,2.4669]
[1724115526483,3.7525,2664.9,2664.2,2.4669]
[1724115526980,10.55355,2665.1,2664.2,2.4669]
[1724115527182,3.0,2664.8,2664.2,2.4669]
[1724115527505,3.0,2665.0,2664.3,2.33472019]
[1724115527691,3.75253,2664.9,2664.3,2.2899]
[1724115528015,3.0,2664.8,2664.3,2.2899]
[1724115528714,6.75214,2665.2,2664.3,2.2899]
[1724115528914,3.7522,2665.1,2664.3,2.2899]
[1724115529114,3.67711867,2665.0,2664.3,2.2899]
[1724115529529,6.72611867,2665.0,2664.3,2.2899]
[1724115529883,3.00189867,2665.0,2664.3,2.2899]
[1724115530237,3.0,2664.9,2664.3,2.2899]
[1724115530441,0.00189867,2665.0,2664.3,2.2899]
[1724115531309,0.00189867,2665.0,2664.4,0.04172911]
[1724115531630,0.00189867,2665.0,2664.5,2.2899]
[1724115531990,0.00189867,2665.0,2664.7,2.2899]
[1724115532689,0.00189867,2665.0,2664.8,0.04152608]
[1724115532889,0.00189867,2665.0,2664.7,2.2899]
[1724115533096,0.00189867,2665.0,2664.9,0.04003749]
[1724115533301,0.00189867,2665.0,2664.7,2.2899]
[1724115533501,0.00189867,2665.0,2664.9,0.04002849]
[1724115533798,0.00189867,2665.0,2664.7,2.2899]
[1724115534198,0.00189867,2665.0,2664.8,0.04007361]
[1724115534722,0.67729754,2665.0,2664.9,0.04002849]
[1724115534924,0.67729754,2665.0,2664.7,2.2899]
[1724115535224,0.67729754,2665.0,2664.9,0.0387074]
[1724115535424,0.67729754,2665.0,2664.8,0.03874352]
[1724115535583,0.00189867,2665.0,2664.7,2.2899]
[1724115535786,0.00189867,2665.0,2664.9,0.03869841]
[1724115536008,0.00189867,2665.0,2664.8,0.03874352]
[1724115536222,0.00189867,2665.0,2664.7,2.2899]
[1724115536423,0.00189867,2665.0,2664.9,0.03869841]
[1724115536623,0.00189867,2665.0,2664.8,0.03874352]
[1724115536935,0.00189867,2665.0,2664.9,0.03869841]
[1724115537135,0.00189867,2665.0,2664.7,2.2899]
[1724115537341,0.00189867,2665.0,2664.9,0.0387029]
[1724115537503,0.00189867,2665.0,2664.7,2.2899]
[1724115537836,0.00189867,2665.0,2664.9,0.03869841]
[1724115538130,0.00189867,2665.0,2664.7,2.2899]
[1724115538440,0.00189867,2665.0,2664.9,0.03869841]
[1724115538598,0.00189867,2665.0,2664.8,0.03873453]
[1724115538794,0.00189867,2665.0,2664.7,2.2899]
[1724115539002,10.55571867,2665.0,2664.9,0.03868942]
[1724115539201,3.75248,2664.9,2664.8,0.03873453]
[1724115539400,3.75248,2664.9,2664.5,2.4361]
[1724115539649,3.0,2664.8,2664.5,2.4361]
[1724115540402,8.15881054,2665.0,2664.5,2.4361]
[1724115540403,3.0,2664.9,2664.5,2.4361]
[1724115540915,3.0,2664.9,2664.6,0.03882478]
[1724115541123,4.11588105,2664.9,2664.6,0.03882478]
[1724115541324,7.86837105,2664.9,2664.6,0.03882478]
[1724115541723,3.0,2664.9,2664.6,0.03882478]
[1724115541926,3.00189867,2665.0,2664.6,0.03882478]
[1724115542511,3.75251,2664.9,2664.6,0.03882478]
[1724115542864,3.0,2664.8,2664.6,0.03882478]
[1724115543346,3.0,2664.8,2664.5,2.4361]
[1724115544318,3.0,2664.9,2664.5,2.67971]
[1724115544527,0.00189867,2665.0,2664.5,2.4361]
[1724115545150,3.75430867,2665.0,2664.5,2.4361]
[1724115545535,3.75249,2664.9,2664.5,2.4361]
[1724115545736,3.75430867,2665.0,2664.5,2.4361]
[1724115545940,7.42798087,2664.9,2664.5,2.4361]
[1724115546147,3.67543087,2664.9,2664.5,2.4361]
[1724115546328,3.0,2664.9,2664.5,2.4361]
[1724115548118,0.00189867,2665.0,2664.5,2.4361]
[1724115550914,6.75432867,2665.0,2664.5,2.4361]
[1724115551119,3.00189867,2665.0,2664.5,2.4361]
[1724115551320,0.00189867,2665.0,2664.5,2.4361]
[1724115551556,0.00189867,2665.0,2664.5,2.67971]
[1724115553048,0.00189867,2665.0,2664.7,2.3519]
[1724115553414,0.00189867,2665.0,2664.9,2.3519]
[1724115553854,0.00189867,2665.0,2664.9,2.39063885]
[1724115554433,0.00189867,2665.0,2663.7,7.38]
[1724115554644,0.00189867,2665.0,2664.9,0.03873885]
[1724115554852,0.00189867,2665.0,2664.7,2.2665]
[1724115555361,0.00189867,2665.0,2663.8,0.738]
[1724115555662,3.00189867,2665.0,2664.8,0.03878397]
[1724115555832,3.00189867,2665.0,2664.5,2.2665]
[1724115556037,4.73280787,2664.9,2664.5,2.2665]
[1724115556558,0.98031787,2664.9,2664.5,2.2665]
[1724115556858,3.049,2664.8,2664.6,0.03887421]
[1724115557071,3.0,2664.7,2664.6,0.03887421]
[1724115557227,3.0,2664.7,2664.3,2.2631]
[1724115557450,0.98031787,2664.9,2664.3,2.2631]
[1724115557627,0.98031787,2664.9,2664.4,0.03900493]
[1724115558029,0.39822165,2664.8,2664.3,2.2631]
[1724115558358,0.39822165,2664.8,2664.4,0.03900493]
[1724115558517,0.39822165,2664.8,2664.3,2.2631]
[1724115558718,0.39822165,2664.8,2664.5,0.0389598]
[1724115559041,0.39822165,2664.8,2664.3,2.2631]
[1724115559247,3.75253,2664.9,2664.3,2.2631]
[1724115559556,3.0,2664.8,2664.4,0.03914429]
[1724115559726,3.0,2664.8,2664.3,2.2631]
[1724115559930,3.0,2664.8,2664.4,0.03914429]
[1724115560132,3.0,2664.8,2664.3,2.2631]
[1724115560133,4.05070387,2664.8,2664.3,2.2631]
[1724115560337,4.05070387,2664.8,2664.4,0.03915328]